Cogmind - Beta 14 @@@ ROGUE MODE // 2024.08.22 @ 15:02:52 Player: Gabri Result: Destroyed by CV-KOT(R) with Subdweller Shrapnel Launcher Performance ------------- Evolutions (0) 0 Regions Visited (2) 400 Robots Destroyed (16) 80 Value Destroyed (484) 484 Prototype IDs (0) 0 Alien Tech Used (0) 0 Bonus (0) 0 TOTAL SCORE: 964 Bonus ------- None Cogmind --------- Core Integrity 0/250 Matter 140/300 Energy 125/125 System Corruption 0% Temperature Cool (80) Movement Treading (160) Location -10/Subcaves Parts ------- > --- POWER (1) -------- Light Ion Engine > --- PROPULSION (2) --- Spiked Treads Spiked Treads > --- UTILITY (2) ------ Large Storage Unit Makeshift Light Armor Plating > --- WEAPON (2) ------- Barrage Gun Grenade Launcher > --- INVENTORY (15) --- Subdweller Power Source Subdweller Power Source Subdweller Power Source Light Treads Wheel Large Storage Unit Makeshift Light Armor Plating Scrap Shield Subdweller Laser Barrage Gun Makeshift Hammer Makeshift Spear Peak State ------------ > --- POWER ------------ Light Ion Engine > --- PROPULSION ------- Spiked Treads Spiked Treads > --- UTILITY ---------- Large Storage Unit Makeshift Light Armor Plating > --- WEAPON ----------- Barrage Gun Subdweller Shrapnel Launcher > --- INVENTORY -------- Light Ion Engine Subdweller Power Source Subdweller Power Source Subdweller Power Source Light Treads Wheel Large Storage Unit Makeshift Light Armor Plating Scrap Shield Particle Gun Subdweller Laser Grenade Launcher Makeshift Hammer Makeshift Spear [Rating: 18] Favorites ----------- Power Ion Engine Engine Ion Engine Propulsion Light Treads Treads Light Treads Utility Large Storage Unit Device Seismic Detector Storage Large Storage Unit Protection Makeshift Light Armor Plating Weapon Particle Gun Energy Gun Particle Gun Ballistic Gun Barrage Gun Launcher Grenade Launcher Impact Weapon Hammer Build | -11 -10 -10 ------- Run | Yrd Mat Sub Slots Evolved . | . . . Power . | . . . Propulsion . | . . . Utility . | . . . Weapon . | . . . Parts Attached 26 | 6 4 16 Power 5 | 1 . 4 Engine 5 | 1 . 4 Core . | . . . Reactor . | . . . Propulsion 4 | 2 . 2 Treads 4 | 2 . 2 Leg . | . . . Wheel . | . . . Hover . | . . . Flight . | . . . Utility 5 | 2 2 1 Device 1 | 1 . . Storage 2 | 1 1 . Processor . | . . . Hackware . | . . . Protection 2 | . 1 1 Artifact . | . . . Weapon 12 | 1 2 9 Energy Gun 4 | 1 1 2 Energy Cannon . | . . . Ballistic Gun 1 | . . 1 Ballistic Cannon . | . . . Launcher 5 | . . 5 Special Weapon . | . . . Impact Weapon 2 | . 1 1 Slashing Weapon . | . . . Piercing Weapon . | . . . Special Melee Weapon . | . . . Unidentified Prototypes . | . . . Parts Lost 4 | . 1 3 Power 2 | . . 2 Propulsion . | . . . Utility 1 | . 1 . Weapon 1 | . . 1 Highest Loss Streak 2 | . 1 2 To Critical Strikes . | . . . Average Slot Usage (%) 97 | . 90 99 Engine 14 | . 14 14 Treads 28 | . 28 28 Device 1 | . 6 . Storage 14 | . 14 14 Protection 10 | . 3 14 Energy Gun 11 | . 20 7 Ballistic Gun 4 | . . 7 Launcher 4 | . . 6 Impact Weapon 5 | . 3 6 Peak Build Rating 18 | 6 9 18 Average Rating 11 | 3 7 13 On Entrance 5 | . 6 9 Naked Turns . | . . . Heaviest Build 38 | 13 35 38 Greatest Support 40 | 40 40 40 Greatest Overweight (x) . | . . . Average Overweight (x) . | . . . Largest Inventory Capacity 15 | 8 15 15 Average Capacity 13 | 6 9 15 Most Carried 15 | 4 11 15 Average Carried 11 | 3 7 14 Final Capacity 15 | 8 15 15 Final Carried 13 | 4 11 13 Class Distribution -------------------- 79% | Mutant 20% | Derelict-Mutant Dominant Class ---------------- Mutant | -10/Materials Mutant | -10/Subcaves Resources | -11 -10 -10 ----------- Run | Yrd Mat Sub Matter Collected 628 | 260 35 333 Remotely . | . . . Salvage Created 417 | 22 156 239 Parts 32 | 4 11 17 Haulers Intercepted . | . . . Recyclers Shooed . | . . . Parts Field Recycled . | . . . Retrieved Matter . | . . . Parts Self-Destructed 16 | . . 16 Prevented . | . . . Kills | -11 -10 -10 ------- Run | Yrd Mat Sub Combat Hostiles Destroyed 14 | . 3 11 Melee 1 | . 1 . Guns 3 | . 1 2 AOE 9 | . . 9 Classes Destroyed 5 | 1 1 3 Tunneler 2 | 1 1 . Swarmer 3 | . . 3 Grunt 3 | . 3 . Sentry 1 | . . 1 Subdweller 7 | . . 7 Best Kill Streak 3 | 1 2 3 Combat Bots Only 3 | . 2 3 Max Kills in Single Turn 1 | 1 1 1 Gunslinging . | . . . Exploded 1 | . . 1 Melee 1 | . 1 . Uniques/NPCs Destroyed . | . . . Combat | -11 -10 -10 -------- Run | Yrd Mat Sub Hostile Shots Fired 79 | . 22 57 Missed 22 | . 2 20 Damage Taken 1158 | . 273 885 Core 250 | . 83 167 Absorbed by Shields . | . . . Redirected to Shielding 25 | . . 25 Core Remaining (%) 100 | 100 . . Volleys Fired 40 | 1 7 32 Largest 2 | 1 2 2 Hottest 115 | 50 115 93 Shots Fired 53 | 1 14 38 Gun 29 | 1 14 14 Cannon . | . . . Launcher 24 | . . 24 Special . | . . . Kinetic 18 | . . 18 Thermal 17 | 1 14 2 Explosive 18 | . . 18 Electromagnetic . | . . . Robot Hit Streak 9 | 1 8 9 Robot Miss Streak 1 | . 1 1 Penetration Max . | . . . Secondary Targets . | . . . Shots Hit Robots 42 | 1 19 22 Core Hits 25 | 1 6 18 Critical Kills . | . . . Critical Parts Destroyed 1 | . 1 . Critical Strikes 3 | . 2 1 Burn 2 | . 1 1 Smash 1 | . 1 . Melee Attacks 12 | . 9 3 Impact 12 | . 9 3 Slashing . | . . . Piercing . | . . . Sneak Attacks . | . . . Combat Hostiles . | . . . Follow-up Attacks . | . . . Damage Inflicted 1697 | 12 369 1316 Guns 264 | 12 152 100 Cannons . | . . . Explosions 1216 | . . 1216 Melee 217 | . 217 . Ramming . | . . . Kinetic 417 | . . 417 Thermal 191 | 12 152 27 Explosive 872 | . . 872 Electromagnetic . | . . . Impact 217 | . 217 . Slashing . | . . . Piercing . | . . . Highest Corruption . | . . . Average Corruption . | . . . Corruption Purged . | . . . Corruption Blocked . | . . . Overload Shots . | . . . Overflow Damage 17 | . 17 . Projectiles . | . . . Explosions . | . . . Melee 17 | . 17 . Knockbacks 1 | . 1 . Impact 1 | . 1 . Kinetic . | . . . Secondary . | . . . Self-Inflicted Damage 15 | . . 15 Shots 1 | . . 1 Rammed . | . . . Targets Rammed . | . . . Kicked . | . . . Crushed . | . . . Highest Temperature 289 | 10 240 289 Average Temperature 102 | 7 100 120 Received Heat Transfer 582 | . 150 432 Siege Activations . | . . . Robots Corrupted . | . . . Combat Hostiles . | . . . Parts Fried . | . . . Impact Corruptions 1 | . 1 . Robots Melted 1 | . 1 . Combat Hostiles 1 | . 1 . Parts Melted 3 | . 1 2 Heat Transferred 666 | 37 481 148 Parts Sabotaged . | . . . Parts Stolen . | . . . Parts Stripped . | . . . Power Chain Reactions . | . . . Alert | -11 -10 -10 ------- Run | Yrd Mat Sub Peak Influence 133 | 5 133 . Initial 3 | . 3 . Average 30 | . 34 . Maximum Alert Level . | . . . Low Security (%) 100 | 100 100 . Level 1 . | . . . Level 2 . | . . . Level 3 . | . . . Level 4 . | . . . Level 5 . | . . . High Security . | . . . Max Security . | . . . Squads Dispatched 2 | . 2 . Investigation . | . . . Extermination . | . . . Reinforcement 2 | . 2 . Assault . | . . . Garrison . | . . . Intercept . | . . . Searches Triggered . | . . . Construction Impeded . | . . . Haulers Reinforced . | . . . Active Scanning Responses . | . . . Cargo Convoy Interrupts . | . . . Stealth | -11 -10 -10 --------- Run | Yrd Mat Sub Distress Signals . | . . . Communications Jammed . | . . . Distress Signals . | . . . Times Spotted 18 | . 5 13 Peak Tracking Total 3 | . 2 3 Tactical Retreats 3 | . 3 . Traps | -11 -10 -10 ------- Run | Yrd Mat Sub Traps Triggered . | . . . Indirectly . | . . . Trap Hack Attempts . | . . . Triggered . | . . . Disarmed . | . . . Reprogrammed . | . . . Reused . | . . . Traps Extracted . | . . . Installed . | . . . Triggered 1 | . . 1 Most Traps Carried 1 | . . 1 Machines | -11 -10 -10 ---------- Run | Yrd Mat Sub Machines Disabled . | . . . Max in Single Turn . | . . . Machines Repaired . | . . . Machines Dismantled . | . . . Machines Sabotaged . | . . . Overloaded Fab Kills . | . . . Hacking | -11 -10 -10 --------- Run | Yrd Mat Sub Machines Accessed . | . . . Terminals . | . . . Fabricators . | . . . Repair Stations . | . . . Recycling Units . | . . . Scanalyzers . | . . . Garrison Access . | . . . Total Hacks . | . . . Successful . | . . . Failed . | . . . Catastrophic . | . . . Database Lockouts . | . . . Manual . | . . . Terminals . | . . . Fabricators . | . . . Repair Stations . | . . . Recycling Units . | . . . Scanalyzers . | . . . Garrison Access . | . . . Terminal Hacks . | . . . Fabricator Hacks . | . . . Repair Station Hacks . | . . . Recycling Unit Hacks . | . . . Scanalyzer . | . . . Garrison Access Hacks . | . . . Unauthorized Hacks . | . . . Terminals . | . . . Fabricators . | . . . Repair Stations . | . . . Recycling Units . | . . . Scanalyzers . | . . . Garrison Access . | . . . Data Cores Recovered . | . . . Used . | . . . Hacking Detections . | . . . Full Trace Events . | . . . Feedback Events . | . . . Feedback Blocked . | . . . Robot Schematics Acquired . | . . . Robots Built . | . . . Authchips . | . . . Time . | . . . Total Robot Build Rating . | . . . Part Schematics Acquired . | . . . Parts Built . | . . . Authchips . | . . . Time . | . . . Total Part Build Rating . | . . . Parts Repaired . | . . . Time . | . . . Parts Recycled . | . . . Recycled Matter . | . . . Retrieved Matter . | . . . Retrieved Components . | . . . Parts Scanalyzed . | . . . Part Schematics Acquired . | . . . Parts Damaged . | . . . Bothacking | -11 -10 -10 ------------ Run | Yrd Mat Sub Used RIF Installer . | . . . Robots Hacked . | . . . Non-combat . | . . . Combat . | . . . Robot Hacks Applied . | . . . Relay Couplers Released . | . . . Fabnet Peak Effective % . | . . . Robots Rewired . | . . . Allies Hacked . | . . . Hacks Repelled . | . . . Allies | -11 -10 -10 -------- Run | Yrd Mat Sub Total Allies . | . . . Largest Group . | . . . Highest-Rated Group . | . . . Highest-Rated Ally . | . . . Total Orders . | . . . Ally Attacks . | . . . Total Damage . | . . . Kills . | . . . Allies Corrupted . | . . . Allies Melted . | . . . Intel | -11 -10 -10 ------- Run | Yrd Mat Sub Robot Analysis Total . | . . . Derelict Logs Recovered 2 | . . 2 Drone Launches . | . . . Drone Recoveries . | . . . Exploration | -11 -10 -10 ------------- Run | Yrd Mat Sub Turns Passed 1807 | 75 532 1200 Spaces Moved 923 | 41 218 664 Core 4 | 4 . . Treads 919 | 37 218 664 Legs . | . . . Wheels . | . . . Hover . | . . . Flight . | . . . Fastest Speed 50 | 50 160 160 Average Speed 159 | 149 160 160 Slowest Speed 160 | 160 160 160 Overloaded Moves . | . . . Propulsion Burnouts . | . . . Robots Hopped . | . . . Cave-ins Triggered . | . . . Exploration Rate (%) 28 | 4 33 49 Regions Visited 2 Branch Regions 1 Pre-discovered Areas 2 | . . 2 Known Exits Taken . | . . . Unknown Exits Taken 2 | 1 1 . Scrap Searched 8 | . . 8 Spaces Dug . | . . . Terrain Destroyed 107 | . . 107 Melee . | . . . Projectile . | . . . AOE 107 | . . 107 Terrain Rammed . | . . . Walls Destroyed . | . . . Machines Disabled . | . . . Actions | -11 -10 -10 --------- Run | Yrd Mat Sub Total 1183 | 51 371 761 Wait 146 | . 124 22 Move 921 | 40 217 664 Hop . | . . . Pick Up 23 | 4 8 11 Fast Attach 10 | 6 2 2 Attach 4 | . 1 3 Detach 2 | . 1 1 Swap 12 | . 1 11 Drop 13 | . 1 12 Fire 40 | 1 7 32 Melee 12 | . 9 3 Ram . | . . . Kick . | . . . Crush . | . . . Escape Stasis . | . . . Rewire . | . . . Trap . | . . . Miscellaneous . | . . . Route ------- -11/Scrapyard -10/Materials (discovered 2 exits: [*Mat] / [*Sub]) -10/Subcaves History --------- Turn | Location | Event 30 | -11/Scrapyard | Discovered new exit (range 15) 76 | -11/Scrapyard | Entered Materials 231 | -10/Materials | Discovered new exit (range 7) 313 | -10/Materials | Build established: Mutant 581 | -10/Materials | Discovered new exit (range 7) 608 | -10/Materials | Entered Subcaves 1046 | -10/Subcaves | A swath of the cavern ceiling suddenly collapsed 1333 | -10/Subcaves | Learned location of Storage (-7) 1733 | -10/Subcaves | Build established: Derelict-Mutant 1743 | -10/Subcaves | Learned location of Recycling (-7) 1796 | -10/Subcaves | Core integrity fell below 50% 1797 | -10/Subcaves | Ambushed by Subdweller buried in earth 1802 | -10/Subcaves | Core integrity fell below 20% 1808 | -10/Subcaves | Destroyed by CV-KOT(R) with Subdweller Shrapnel Launcher Last Messages --------------- 01704_ Found 45 Matter. 01708_ Dropped Hammer. 01710_ Acquired Mak. Hammer. 01711_ Searching scrap... 01711_ Found Barrage Gun. 01711_ Found 56 Matter. 01712_ Dropped Particle Gun. 01714_ Acquired Barrage Gun. 01717_ Searching scrap... 01717_ Found Flamer. 01717_ Found Sub. Beam Cannon. 01717_ Found 39 Matter. 01743_ Acquired derelict log, extracted data. World map updated: -7/Recycling. 01764_ BT-452(R) destroyed. 01781_ G6-S8P(R) destroyed. 01783_ Sub. Shrapnel Launcher destroyed. 01797_ Lgt. Ion Engine destroyed. 01798_ 4X-IQH(R): "ARGHSUB!" 01799_ Critical hit (Meltdown: +300). Map ----- +----------------------------------------------------+ | ?????????????????????????????????????????????????? | | ?????????????????????????????????????????????????? | | ?????????????????????????????????????????????????? | | ???????????????????????????????????????????? ??? | | ????????????????????????????????????????? # | | ????????????????????????????????????????? | | ????????????????????????????????????????????# | | ????????????????????????????????????????????# | | ????????????????????????????????????????????# ### | | ????????????????????????????????????????????#????? | | ????????????????????????? #?????????????????????? | | ????????????????????????? #????????????????????? | | ????????????????????????? ##???????????????????? | | ????????????????????????# #???????????????????? | | ???????????????????#????# ????????????????????? | | ?????????????? ???## ???# ????????????????????? | | ????????????? ?## ???# ????????????????????# | | ????????????? ? ? ?## #???????????????????## | | ???????????? ## #???????????????????# | | ???????????? " #???????????????????# | | ???????????? " " #???????????????????# | | ??????????? #????????????????????? | | ???????????? ?????????????????????? | | ?????????????? ;; ???????????????????? | | ?????????????? ;;;####???????????????? | | ????????????? &% # @ ; ##??????????????? | | ????????????? ;# #????????????##? | | ????????????# "#; #????????????? | | ????????????# "#; ;#?????????????# | | ????????????#; R #?????????????# | | ????????????## ; ;#????????????## | | ?????????????# ## #????????????# | | ????????????????#" ##????# ### | | ????????????????#" ;; ##????# | | ????????????????##" &% " #????# % | | ?????????????????# #????# | | ?????????????????# #????# | | ?????????????????# " #????## ### | | ?????????????????## R ## ##???## ???## | | ??????????????????### " # ### # ??# | | ????????????????????####### % "???? | | ??????????????????????????# " " ##?????? | | ??????????????????????????### ## #?????? | | ??????????????????????##??## #?""""#?????? | | ?????????????????????## ### ##"""###????? | | ????????????????????## ## #????? | | ????????????????????# ##### #####"#????? | | ????????????????????# #??# |[]%"#"?????? | | ????????????????????#### ##??#"" |%""#"#??### | | ???????????????????????# ####???# "% & %##" ?##"# | +----------------------------------------------------+ Best States ------------- Heat Dissipation 25 Energy Generation 15 Energy Capacity 250 Matter Stores 300 Matter Capacity 300 Sight Range 16 Terrain Scan Density 10 Armor Coverage 100 Propulsion Shielding 33 Evasion (%) 40 Recoil Reduction 2 Item Schematics ----------------- None Robot Schematics ------------------ None Fabricated ------------ Nothing Alien Tech Used ----------------- None Achievements -------------- None Challenges ------------ None Game ------ Seed CannonDisposableRipteeth Manual? 0 Play Time 00:19:05 Cumulative 20.2 hours Start 2024.08.22 @ 14:46:10 End 2024.08.22 @ 15:02:52 Sessions 1 Manual Loads 0 Difficulty Rogue Special Mode None Game No. 20 Rogue 20 Adventurer 0 Explorer 0 Win Type - Total 1 Types 1/0/0/0/0/0/0/0/0 Lore% 12 Gallery% 23 Achievement% 21 Wizard Run 0 Options --------- Layout 1 ASCII 0 Keyboard 1 Movement Numpad Keybinds 1 Fullscreen 1 Font 24/Smallcaps Map View 50x35 Zoom Use 0% Tactical HUD 1 Map Filters NONE Filters NONE Steam 1 RUN: 91d78ff9-c883-48e3-95a4-42af3f87f923